bitfinex-derivatives/quotes_ETHF0:USTF0_20241129
["timestamp","ask_amount","ask_price","bid_price","bid_amount"]
[1732903142473,0.69596,3589.5,3588.7,0.27858567]
[1732903142474,0.27842,3588.9,3588.8,1.75353]
[1732903143181,0.27842,3588.9,3588.8,1.4751]
[1732903143375,0.27842,3589.0,3588.9,0.27841]
[1732903143881,0.8957,3589.3,3588.8,1.4751]
[1732903143882,0.27842,3588.9,3588.8,1.4751]
[1732903144183,0.27845,3588.6,3588.5,0.4344]
[1732903144572,0.27845,3588.5,3588.4,4.2728]
[1732903145983,0.27846,3588.4,3588.3,0.4344]
[1732903146290,0.27848,3588.1,3588.0,0.4319]
[1732903147085,0.27848,3588.1,3588.0,0.71039]
[1732903147481,0.27848,3588.1,3588.0,0.4319]
[1732903148579,3.2078,3588.3,3587.9,1.065]
[1732903148778,0.27849,3588.0,3587.9,1.065]
[1732903148979,3.90398,3588.3,3587.5,0.4447]
[1732903149182,3.90398,3588.3,3587.4,0.4081]
[1732903149183,3.2078,3587.9,3587.4,0.4081]
[1732903149380,3.2078,3587.9,3587.3,0.0126]
[1732903149381,0.27854,3587.4,3587.3,0.0126]
[1732903150179,3.48634,3587.4,3587.3,0.0126]
[1732903150481,5.81862116,3587.4,3587.3,1e-05]
[1732903150883,10.81862116,3587.4,3587.3,1e-05]
[1732903151081,5.81862116,3587.4,3587.3,1e-05]
[1732903151384,10.81862116,3587.4,3587.3,1e-05]
[1732903152083,5.81862116,3587.4,3587.3,1e-05]
[1732903152285,10.81862116,3587.4,3587.3,1e-05]
[1732903153183,0.27864,3586.1,3585.9,0.4081]
[1732903153392,0.27865,3586.0,3585.9,0.4081]
[1732903153688,3.2078,3586.3,3585.9,0.4081]
[1732903153885,0.27863,3586.3,3586.0,0.27864]
[1732903154095,0.27863,3586.2,3586.0,0.27864]
[1732903154386,0.27863,3586.3,3585.9,0.4081]
[1732903154591,0.27863,3586.3,3586.1,0.27864]
[1732903154788,0.27863,3586.2,3585.9,0.68675]
[1732903155087,0.27865,3586.0,3585.9,0.4081]
[1732903156093,0.27865,3586.1,3585.9,0.4081]
[1732903156297,0.27865,3586.0,3585.9,0.4081]
[1732903156491,0.27867,3585.7,3585.5,0.27869]
[1732903156793,2.33228116,3586.1,3585.4,0.4404]
[1732903157186,2.33228116,3586.1,3585.5,0.27868]
[1732903157385,0.27867,3585.7,3585.4,0.71909]
[1732903157585,0.27868,3585.6,3585.4,0.4404]
[1732903157882,0.27869,3585.5,3585.4,0.4404]
[1732903158086,0.27872,3585.2,3584.9,0.27873]
[1732903158398,3.2078,3585.3,3584.8,0.8688]
[1732903158588,0.27871,3585.2,3584.9,0.27873]
[1732903158991,3.2078,3585.3,3584.9,0.27873]
[1732903159294,3.48651,3585.3,3585.0,0.27872]
[1732903159490,3.2078,3585.4,3584.8,0.4435]
[1732903159685,3.2078,3585.4,3585.2,0.27871]
[1732903159892,0.27869,3585.5,3585.2,0.27871]
[1732903160093,0.2787,3585.4,3585.2,0.27871]
[1732903160287,5.54008116,3585.8,3584.8,3.6513]
[1732903160594,3.2078,3585.8,3585.2,3.2078]
[1732903160786,2.994,3586.7,3585.3,3.46614116]
[1732903160787,3.2078,3586.3,3585.3,3.46614116]
[1732903160992,0.27865,3586.0,3585.7,0.27867]
[1732903161200,3.2078,3586.3,3585.6,0.27868]
[1732903161496,3.2078,3586.3,3585.7,0.4367]
[1732903161893,0.27866,3585.9,3585.7,0.71537]
[1732903162198,0.27864,3586.1,3585.9,0.27865]
[1732903162392,3.2078,3586.3,3586.2,0.27863]
[1732903162594,0.27864,3586.1,3585.9,0.27865]
[1732903163098,3.2078,3586.3,3585.8,2.33228116]
[1732903163293,0.27865,3586.0,3585.9,0.27866]
[1732903163595,0.27865,3586.0,3585.8,2.61094116]
[1732903163796,3.2078,3586.3,3585.7,0.4367]
[1732903164096,0.27866,3585.9,3585.7,0.4367]
[1732903164397,0.27866,3585.9,3585.8,0.27866]
[1732903164693,3.2078,3586.3,3586.1,0.27864]
[1732903164694,0.27863,3586.2,3586.1,0.27864]
[1732903164896,3.2078,3586.3,3585.8,2.33228116]
[1732903165201,0.27866,3585.9,3585.8,0.27866]
[1732903165399,0.27866,3585.8,3585.7,0.4367]
[1732903165590,0.27866,3585.8,3585.7,0.71537]
[1732903165899,0.27866,3585.8,3585.7,0.4367]
[1732903166098,0.27869,3585.4,3585.3,0.4371]
[1732903166296,0.27869,3585.4,3585.3,0.8613]
[1732903166694,0.27869,3585.4,3585.3,0.4242]
[1732903166996,0.27873,3584.9,3584.8,3.2078]
[1732903167303,3.2078,3585.4,3584.5,0.8692]
[1732903167699,0.27876,3584.6,3584.5,1.14796]
[1732903169396,3.90456,3585.4,3584.5,0.8692]
[1732903169799,0.27876,3584.6,3584.5,1.14796]
[1732903170193,0.69682,3585.1,3584.5,0.8692]
[1732903170394,0.69679,3585.2,3584.5,0.8692]
[1732903170600,0.27875,3584.8,3584.7,0.27874]
[1732903170901,0.69679,3585.2,3584.5,0.8692]
[1732903170902,0.69678,3585.2,3584.5,0.8692]
[1732903171097,3.2078,3585.4,3584.5,3.20148116]
[1732903171304,2.994,3585.7,3585.1,2.33228116]
[1732903171498,0.27871,3585.2,3585.1,2.33228116]
[1732903171707,0.27873,3584.9,3584.8,3.48653]
[1732903171906,2.994,3585.7,3584.8,3.2078]
[1732903172207,0.27872,3585.2,3585.1,0.27871]
[1732903172699,2.994,3585.7,3584.8,5.54008116]
[1732903172902,0.27871,3585.3,3584.9,0.27873]
[1732903173199,0.27871,3585.3,3585.2,0.27871]
[1732903173398,0.27871,3585.2,3585.1,0.27871]
[1732903173596,2.994,3585.7,3584.8,5.54008116]
[1732903173803,0.27873,3585.0,3584.9,0.27872]
[1732903174104,0.27872,3585.1,3585.0,0.27872]
[1732903174299,2.994,3585.7,3584.8,5.54008116]
[1732903174498,2.994,3585.7,3584.5,1.9322]
[1732903174499,0.69676,3585.3,3584.5,0.8692]
[1732903174707,3.2078,3585.4,3584.5,0.8692]
[1732903174901,0.27875,3584.8,3584.7,0.27875]
[1732903175206,0.27875,3584.7,3584.6,0.27875]
[1732903175403,0.4462,3585.6,3584.5,0.8692]
[1732903175404,0.27873,3585.1,3585.0,0.27872]
[1732903175609,0.69673,3585.5,3584.8,2.33228116]
[1732903175905,0.4462,3585.6,3584.5,6.40928116]
[1732903175906,0.27874,3584.9,3584.5,6.40928116]
[1732903176206,0.69676,3585.3,3584.5,6.40928116]
[1732903176509,0.69676,3585.3,3584.5,6.68804116]
[1732903176705,0.69676,3585.3,3584.6,0.27875]
[1732903176706,0.27876,3584.7,3584.6,0.27875]
[1732903176905,0.27876,3584.6,3584.5,4.077]
[1732903177405,0.27876,3584.6,3584.5,4.35576]
[1732903177607,0.27876,3584.6,3584.5,1.14796]
[1732903177803,0.27876,3584.6,3584.5,0.8692]
[1732903178606,0.27876,3584.6,3583.7,3.2078]
[1732903178607,0.69692,3584.5,3583.7,3.2078]
[1732903178810,3.2078,3584.6,3583.8,3.16864708]
[1732903179110,0.27877,3584.5,3584.4,0.27877]
[1732903179306,2.994,3584.9,3584.1,5.54008116]
[1732903179499,0.27878,3584.3,3584.2,0.66599003]
[1732903179699,0.27877,3584.5,3584.4,0.27877]
[1732903179904,0.27875,3584.7,3584.6,0.27875]
[1732903180104,0.27874,3584.9,3584.8,0.27874]
[1732903180400,0.27876,3584.6,3584.5,0.27876]
[1732903181408,0.27874,3584.9,3584.8,0.27874]
[1732903181708,3.2078,3585.1,3584.4,0.4216]
[1732903181913,0.27876,3584.7,3584.6,0.27875]
[1732903182207,0.27875,3584.8,3584.7,0.27874]
[1732903182599,0.27876,3584.7,3584.6,0.27875]
[1732903183105,0.27876,3584.5,3584.4,0.70037]
[1732903183306,3.2078,3584.5,3583.8,1.063]
[1732903183508,0.2788,3584.1,3584.0,0.27879]
[1732903183710,0.449,3584.4,3583.8,0.4261]
[1732903184009,0.2788,3584.2,3584.1,0.27879]
[1732903184310,0.2788,3584.1,3584.0,0.2788]
[1732903184707,0.27881,3584.0,3583.9,0.2788]
[1732903184901,0.449,3584.4,3583.8,0.4261]
[1732903185102,0.27879,3584.3,3584.2,0.27878]
[1732903185609,0.449,3584.4,3584.3,0.27878]
[1732903186307,0.449,3584.4,3583.8,3.2078]
[1732903186507,0.2788,3584.1,3583.8,0.27882]
[1732903186702,0.449,3584.4,3583.6,3.90489]
[1732903186901,0.2788,3584.1,3583.7,0.38045901]
[1732903187211,0.27878,3584.3,3583.6,3.2078]
[1732903187403,0.27878,3584.3,3583.5,0.27884669]
[1732903187404,0.449,3584.4,3584.3,0.27878]
[1732903187703,2.33228116,3584.8,3584.6,0.27875]
[1732903187704,0.27875,3584.8,3584.6,0.27875]
[1732903187908,3.2078,3585.1,3584.5,0.27876]
[1732903187909,0.27876,3584.6,3584.5,0.27876]
[1732903188113,3.9046,3585.1,3584.3,0.4125]
[1732903188308,0.27877,3584.5,3584.3,0.69127]
[1732903188502,2.33228116,3584.8,3584.3,0.4125]
[1732903188702,0.27877,3584.4,3584.3,0.69128]
[1732903189212,3.2078,3585.1,3584.3,0.4125]
[1732903189408,0.27873,3585.0,3584.9,0.27873]
[1732903189616,0.27875,3584.8,3584.7,0.27875]
[1732903189812,3.6477,3585.1,3584.4,3.2078]
[1732903190113,0.27872,3585.2,3585.1,0.27872]
[1732903190310,0.27872,3585.1,3585.0,0.27872]
[1732903190514,2.33228116,3585.1,3584.3,3.6203]
[1732903190714,0.27875,3584.8,3584.7,0.27874]
[1732903190911,2.33228116,3585.1,3584.3,3.6203]
[1732903191415,0.27877,3584.5,3584.4,0.27876]
[1732903191718,0.27876,3584.6,3584.5,0.27875]
[1732903192214,0.27875,3584.7,3584.6,0.27874]
[1732903193012,0.70754,3584.9,3584.8,0.27874]
[1732903193209,0.27876,3584.7,3584.6,0.27875]
[1732903193617,0.4288,3584.9,3584.3,3.6203]
[1732903193819,0.27875,3584.7,3584.6,0.27875]
[1732903194320,0.27875,3584.8,3584.7,0.27874]
[1732903194715,0.4288,3584.9,3584.4,0.4265]
[1732903194916,0.27875,3584.8,3584.7,0.27874]
[1732903195114,0.27876,3584.7,3584.6,0.27875]
[1732903195321,0.27875,3584.8,3584.7,0.27874]
[1732903195829,0.4288,3584.9,3584.5,0.27876]
[1732903195830,0.27876,3584.6,3584.5,0.27876]
[1732903196120,0.27876,3584.7,3584.6,0.27875]
[1732903196319,0.70754,3584.9,3584.8,0.27874]
[1732903196622,5.54008116,3585.1,3585.0,0.27873]
[1732903196623,3.2078,3585.1,3585.0,0.27873]
[1732903196819,3.2078,3585.6,3584.7,3.2078]
[1732903197024,3.2078,3585.6,3584.8,0.4105]
[1732903197321,3.48648,3585.6,3585.5,0.27869]
[1732903197917,0.27868,3585.6,3585.5,0.27868]
[1732903198114,0.27869,3585.5,3585.3,0.2787]
[1732903198415,0.27865,3586.0,3585.4,0.69674]
[1732903198614,0.27865,3586.0,3585.3,0.69676]
[1732903198615,0.27865,3586.0,3585.9,0.27865]
[1732903199224,0.27865,3586.0,3585.6,3.2078]
[1732903199225,5.54008116,3586.1,3585.6,3.2078]
[1732903199525,5.54008116,3586.1,3585.2,0.8735]
[1732903199526,0.27866,3585.9,3585.8,0.27865]
[1732903200225,5.54008116,3586.1,3585.5,3.2078]
[1732903200526,3.2078,3586.6,3585.9,3.2078]
[1732903200823,0.27862,3586.4,3586.3,0.27861]
[1732903201016,0.27862,3586.4,3586.0,0.8529]
[1732903201017,3.2078,3586.6,3586.0,0.8529]
[1732903201413,0.27862,3586.5,3586.4,0.27861]
[1732903201625,3.2078,3586.6,3586.0,0.8529]
[1732903201821,0.27858,3586.9,3586.4,3.2078]
[1732903202020,0.27859,3586.8,3586.7,0.27859]
[1732903202219,4.1005,3587.2,3586.2,2.33228116]
[1732903202428,0.2786,3586.7,3586.6,0.2786]
[1732903202723,0.27859,3586.8,3586.7,0.27859]
[1732903203525,4.1005,3587.2,3586.2,3.02885116]
[1732903203526,0.27858,3586.9,3586.8,0.27858]
[1732903203830,0.27856,3587.2,3587.1,0.27856]
[1732903204019,3.2078,3587.6,3587.5,0.27853]
[1732903204219,0.27851,3587.9,3587.7,0.27851]
[1732903204415,3.6203,3588.1,3587.6,0.27852]
[1732903204625,0.27852,3587.7,3587.0,3.02871116]
[1732903204829,0.2785,3587.9,3587.7,0.27851]
[1732903205024,3.6203,3588.1,3587.3,3.2078]
[1732903205222,0.2785,3587.9,3587.3,3.2078]
[1732903205525,3.6203,3588.1,3587.6,0.27852]
[1732903205526,0.27851,3587.8,3587.6,0.27852]
[1732903205726,0.2785,3587.9,3587.7,0.27851]
[1732903205923,0.27851,3587.8,3587.6,0.27852]
[1732903206129,3.6203,3588.1,3587.7,0.27851]
[1732903206330,0.2785,3587.9,3587.8,0.27851]
[1732903206527,3.6203,3588.1,3587.9,0.2785]
[1732903206733,3.6203,3588.1,3587.8,0.2785]
[1732903207031,0.2785,3587.9,3587.7,0.27851]
[1732903207423,3.6203,3588.1,3587.6,0.27852]
[1732903207730,3.6203,3588.1,3587.3,3.2078]
[1732903208233,3.2078,3588.1,3588.0,0.27849]
[1732903208419,3.2078,3588.6,3588.5,0.27845]
[1732903208722,4.0528,3589.4,3588.5,2.33228116]
[1732903208922,0.27839,3589.3,3588.8,3.48623]
[1732903209226,0.2784,3589.2,3589.0,0.27841]
[1732903209727,3.2078,3589.4,3589.3,0.27839]
[1732903209929,3.2078,3589.4,3589.2,0.2784]
[1732903210227,3.2078,3589.4,3589.3,0.27839]
[1732903210432,3.2078,3589.4,3588.8,0.4386]
[1732903210623,3.2078,3589.4,3589.3,0.27839]
[1732903211224,3.2078,3589.4,3589.2,0.2784]
[1732903211721,3.2078,3589.4,3588.8,0.4386]
[1732903212322,0.27837,3589.6,3589.3,0.27839]
[1732903212631,0.27837,3589.6,3589.4,0.27838]
[1732903212833,0.27839,3589.4,3589.2,0.2784]
[1732903213131,0.27837,3589.6,3589.4,0.27838]
[1732903213321,0.4299,3589.9,3589.1,3.2078]
[1732903213732,0.27838,3589.6,3589.4,0.27838]
[1732903213931,0.27838,3589.5,3589.4,0.27838]
[1732903214130,0.4299,3589.9,3589.4,0.27838]
[1732903214434,3.48613,3590.1,3589.6,2.33228116]
[1732903214732,3.48613,3590.1,3590.0,0.27834]
[1732903215031,3.48613,3590.1,3589.8,0.27835]
[1732903215032,0.27834,3590.0,3589.8,0.27835]
[1732903215331,0.27835,3589.8,3589.7,0.8426]
[1732903215524,0.27835,3589.8,3589.7,0.4241]
[1732903215724,0.27838,3589.4,3589.2,3.2078]
[1732903216027,3.2078,3589.5,3588.8,3.2078]
[1732903216332,0.27839,3589.4,3589.2,0.2784]
[1732903216530,3.2078,3589.5,3588.8,3.2078]
[1732903216733,0.27836,3589.7,3589.6,0.27837]
[1732903217029,3.2078,3590.0,3589.7,0.27836]
[1732903217030,0.27836,3589.8,3589.7,0.27836]
[1732903217335,3.2078,3590.0,3589.4,0.4506]
[1732903217530,0.27837,3589.7,3589.5,0.27837]
[1732903217724,3.2078,3590.0,3589.4,0.4506]
[1732903218133,0.27837,3589.7,3589.6,0.27837]
[1732903218330,0.27837,3589.7,3589.4,0.4506]
[1732903218331,3.2078,3590.0,3589.4,0.4506]
[1732903218635,0.27835,3589.8,3589.7,0.27836]
[1732903218831,0.4476,3590.6,3589.6,3.2078]
[1732903219135,0.4476,3590.6,3589.9,2.33228116]
[1732903219331,0.27834,3590.0,3589.9,0.27834]
[1732903219538,0.27833,3590.1,3589.6,5.54008116]
[1732903219727,0.27833,3590.1,3589.9,0.27834]
[1732903219934,0.4476,3590.6,3589.6,5.54008116]
[1732903220229,0.27834,3590.0,3589.9,0.27834]
[1732903220431,0.4476,3590.6,3589.6,5.54008116]
[1732903220626,1.14334,3590.6,3589.6,5.54008116]
[1732903220832,0.27833,3590.1,3590.0,0.27833]
[1732903221035,0.4476,3590.6,3589.6,5.54008116]
[1732903221229,0.27834,3590.0,3589.9,0.27834]
[1732903221434,0.4476,3590.6,3589.6,5.54008116]
[1732903221632,0.27833,3590.1,3590.0,0.27833]
[1732903221936,0.27833,3590.2,3590.1,0.27833]
[1732903222829,0.4476,3590.6,3589.6,5.54008116]
[1732903223027,0.69577,3590.5,3589.6,5.54008116]
[1732903223228,0.4476,3590.6,3589.6,3.2078]
[1732903223429,3.2078,3590.3,3589.6,3.2078]
[1732903223629,0.27835,3589.9,3589.6,3.2078]
[1732903223830,0.69577,3590.4,3589.6,3.2078]
[1732903224031,0.27834,3590.1,3590.0,0.27833]
[1732903224625,0.4476,3590.6,3589.7,3.02818116]
[1732903224832,0.27831,3590.4,3590.3,0.27831]
[1732903225135,0.4278,3591.1,3590.2,0.4274]
[1732903225332,0.4278,3591.1,3590.5,0.27829]
[1732903225333,0.27829,3590.6,3590.5,0.27829]
[1732903225744,0.27829,3590.7,3590.6,0.27829]
[1732903226043,0.2783,3590.5,3590.4,0.2783]
[1732903226250,0.27829,3590.7,3590.6,0.27829]
[1732903226445,0.27826,3591.0,3590.9,0.27826]
[1732903226641,0.4278,3591.1,3590.5,2.33228116]
[1732903226841,3.2078,3591.2,3590.5,2.33228116]
[1732903227045,0.97104,3591.7,3590.9,2.33228116]
[1732903227046,0.4278,3591.6,3590.9,2.33228116]
[1732903227247,0.27822,3591.5,3591.2,0.27824]
[1732903227446,0.27824,3591.3,3591.2,0.27824]
[1732903228157,2.78974463,3592.1,3591.2,2.33228116]
[1732903228347,0.2782,3591.9,3591.8,0.2782]
[1732903228662,0.27821,3591.7,3591.6,0.27821]
[1732903229348,0.2782,3591.8,3591.7,0.2782]
[1732903230656,0.27821,3591.7,3591.6,0.27821]
[1732903231051,0.2782,3591.8,3591.7,0.2782]
[1732903231857,0.27822,3591.6,3591.5,0.27821]
[1732903232163,0.27821,3591.7,3591.6,0.2782]
[1732903232452,2.78974463,3592.1,3591.6,2.33228116]
[1732903232663,3.06792463,3592.1,3592.0,0.27818]
[1732903233049,2.78974463,3592.1,3592.0,0.27818]
[1732903233252,2.78974463,3592.1,3591.7,0.4504]
[1732903233447,2.78974463,3592.1,3592.0,0.27818]
[1732903233448,3.06792463,3592.1,3592.0,0.27818]
[1732903233654,2.78974463,3592.1,3591.7,0.4504]
[1732903233867,0.27819,3592.0,3591.9,0.27819]
[1732903234564,0.27818,3592.0,3591.7,0.4504]
[1732903234760,0.27818,3592.0,3591.9,0.27819]
[1732903235256,0.2782,3591.8,3591.7,0.7286]
[1732903235459,0.2782,3591.9,3591.8,0.27819]
[1732903235858,0.2782,3591.8,3591.7,0.7286]
[1732903236957,0.006335,3592.1,3591.7,0.4504]
[1732903237262,0.2782,3591.8,3591.7,0.4504]
[1732903237458,0.69548,3592.0,3591.4,4.2658]
[1732903237760,0.006335,3592.1,3591.5,0.4445]
[1732903237960,0.2782,3591.9,3591.8,0.27819]
[1732903238161,0.006335,3592.1,3591.5,0.4445]
[1732903238361,0.2782,3591.8,3591.7,0.2782]
[1732903239762,0.69546,3592.0,3591.5,0.4445]
[1732903239958,0.69543,3592.2,3591.5,0.72272]
[1732903240162,0.27821,3591.7,3591.6,0.27821]
[1732903240359,0.69544,3592.1,3591.6,0.27821]
[1732903240662,0.27821,3591.7,3591.6,0.27821]
[1732903245364,0.2782,3591.8,3591.7,0.27819]
[1732903247060,0.69545,3592.1,3591.5,0.4445]
[1732903247257,3.2078,3591.9,3590.8,5.54008116]
[1732903247461,0.27825,3591.1,3590.8,6.59808116]
[1732903247865,0.27825,3591.1,3591.0,0.70566]
[1732903249168,0.27825,3591.1,3591.0,1.76366]
[1732903252168,0.27825,3591.1,3591.0,1.4854]
[1732903252469,0.27825,3591.1,3591.0,1.76366]
[1732903252669,3.2078,3591.5,3590.8,3.2078]
[1732903252869,0.27828,3590.8,3590.7,1.75948]
[1732903253271,0.27828,3590.8,3590.7,1.4812]
[1732903254169,0.27828,3590.8,3590.7,0.4252]
[1732903254762,0.27828,3590.8,3590.7,0.70348]
[1732903254963,0.27828,3590.8,3590.7,0.4252]
[1732903255173,0.27828,3590.8,3590.7,0.70346]
[1732903255674,0.27828,3590.8,3590.7,0.4252]
[1732903256067,0.27828,3590.8,3590.7,0.70346]
[1732903256374,0.27828,3590.8,3590.7,0.4252]
[1732903256971,0.27828,3590.8,3590.7,0.70346]
[1732903257964,0.69553,3591.3,3590.7,0.4252]
[1732903258276,6.2018,3591.9,3591.2,2.33228116]
[1732903258479,0.27821,3591.4,3591.3,3.486]
[1732903259879,3.2078,3591.9,3591.3,3.6471]
[1732903260173,0.27815,3592.2,3592.1,0.27814]
[1732903260373,0.69528,3592.6,3592.1,5.54008116]
[1732903260570,0.27814,3592.2,3592.1,5.81822116]
[1732903260770,0.27814,3592.2,3592.1,3.48595]
[1732903260970,0.27813,3592.3,3592.2,0.27813]
[1732903261177,3.22330137,3592.7,3592.1,3.2078]
[1732903261178,0.4345,3592.7,3592.1,5.54008116]
[1732903261375,0.27813,3592.4,3592.3,0.27813]
[1732903261775,0.27812,3592.6,3592.5,0.27811]
[1732903261971,3.90292,3593.5,3592.5,5.54008116]
[1732903262277,0.27808,3593.1,3593.0,0.27808]
[1732903262474,0.27808,3593.1,3592.9,3.6284]
[1732903262681,0.4213,3593.3,3592.9,3.90648]
[1732903262868,0.4213,3593.3,3593.1,2.33228116]
[1732903263179,0.27806,3593.2,3593.1,3.38828116]
[1732903263680,0.30235,3593.2,3593.1,3.38828116]
[1732903263870,0.02429,3593.2,3592.9,3.6284]
[1732903264280,0.02429,3593.2,3592.6,0.4075]
[1732903264281,0.2781,3592.7,3592.6,1.4635]
[1732903264677,0.02429,3593.2,3592.6,3.79578116]
[1732903264871,0.27809,3592.9,3592.7,0.2781]
[1732903265182,0.2781,3592.7,3592.6,3.79578116]
[1732903266271,0.27811,3592.6,3592.5,3.2078]
[1732903266474,3.2078,3593.0,3592.4,0.4175]
[1732903266672,0.27812,3592.5,3592.4,0.4175]
[1732903266879,0.69518,3593.1,3592.4,0.4175]
[1732903267084,0.27812,3592.5,3592.4,0.69562]
[1732903267381,0.27812,3592.5,3592.4,0.4175]
[1732903267683,0.27812,3592.5,3592.4,0.69562]
[1732903268275,0.27812,3592.5,3592.4,0.4175]
[1732903269273,0.27812,3592.5,3592.4,1.4735]
[1732903271776,0.27812,3592.5,3592.4,0.4175]
[1732903271987,0.27812,3592.4,3592.3,1.056]
[1732903272378,10.74259649,3592.8,3592.3,1.056]
[1732903272574,10.74259649,3592.8,3592.7,0.2781]
[1732903272879,0.27809,3592.9,3592.8,0.27809]
[1732903273184,0.27808,3593.0,3592.9,0.27809]
[1732903273785,0.27809,3592.9,3592.8,4.32879]
[1732903273973,0.27808,3593.0,3592.9,0.27808]
[1732903274172,0.02429,3593.2,3592.8,4.0507]
[1732903274387,0.02429,3593.2,3592.9,1.056]
[1732903274584,0.27808,3593.0,3592.9,1.056]
[1732903275184,0.27808,3593.0,3592.9,1.33409]
[1732903276178,0.27808,3593.0,3592.9,1.056]
[1732903277082,0.30235,3593.2,3593.1,0.27807]
[1732903277384,0.27804,3593.5,3593.4,0.27804]
[1732903277684,0.27804,3593.5,3593.4,5.81812116]
[1732903278080,10.74259649,3594.0,3593.4,5.54008116]
[1732903278379,0.278,3594.0,3593.5,0.70663]
[1732903278575,0.27802,3593.7,3593.6,0.4054]
[1732903279381,0.27802,3593.8,3593.7,0.27802]
[1732903279581,0.27801,3593.9,3593.8,0.27801]
[1732903279881,3.2078,3594.3,3594.2,0.27798]
[1732903279882,0.27798,3594.3,3594.2,0.27798]
[1732903280085,3.2078,3595.2,3594.2,5.54008116]
[1732903280282,2.33228116,3596.1,3593.8,2.33228116]
[1732903280283,0.04031,3594.9,3594.6,3.2078]
[1732903280481,0.27795,3594.7,3594.6,4.2638]
[1732903281081,0.27795,3594.7,3594.6,4.54175]
[1732903281390,0.04031,3594.9,3594.6,4.2638]
[1732903281581,0.27794,3594.8,3594.7,0.27794]
[1732903281885,0.04031,3594.9,3594.6,4.2638]
[1732903282087,0.27795,3594.7,3594.6,4.54175]
[1732903282490,0.27795,3594.7,3594.6,4.2638]
[1732903283587,0.27795,3594.7,3594.6,3.2078]
[1732903287482,0.27798,3594.2,3594.1,1.053]
[1732903287686,0.27799,3594.1,3594.0,3.2078]
[1732903287991,0.27799,3594.1,3594.0,4.2608]
[1732903288396,0.4147,3594.6,3594.0,6.59308116]
[1732903288695,0.27799,3594.1,3594.0,6.87107116]
[1732903288886,0.27795,3594.7,3594.6,0.27794]
[1732903289086,0.27795,3594.7,3594.6,3.2078]
[1732903289595,0.27795,3594.7,3594.6,4.0387]
[1732903289891,0.27795,3594.7,3594.6,4.31665]
[1732903290194,0.31824,3594.9,3594.8,0.27794]
[1732903290391,0.04031,3594.9,3594.8,1.33094]
[1732903290693,0.04031,3594.9,3594.8,1.053]
[1732903290694,0.31824,3594.9,3594.8,1.053]
[1732903290887,0.31824,3594.9,3594.8,1.33094]
[1732903291084,0.31824,3594.9,3594.8,1.053]
[1732903296496,0.27795,3594.7,3594.6,4.0387]
[1732903296997,0.27798,3594.2,3594.1,3.2078]
[1732903297195,0.27798,3594.2,3594.1,4.0538]
[1732903297491,0.69488,3594.7,3593.2,0.69515]
[1732903297492,0.27802,3593.7,3593.6,3.2078]
[1732903298193,0.27803,3593.6,3593.5,3.38528116]
[1732903298492,0.853,3594.1,3593.3,0.8236]
[1732903298697,0.853,3594.1,3593.3,1.8766]
[1732903298698,0.27805,3593.4,3593.3,1.8766]
[1732903299598,0.27805,3593.4,3593.3,0.8236]
[1732903299788,0.27805,3593.4,3593.3,1.8766]
[1732903301093,0.27805,3593.3,3593.2,3.2078]
[1732903303597,0.6951,3593.6,3592.8,3.2078]
[1732903303598,3.2078,3593.6,3592.8,3.2078]
[1732903303803,3.2078,3593.6,3592.5,2.33228116]
[1732903303804,0.4078,3593.2,3592.5,2.33228116]
[1732903304001,0.2781,3592.7,3592.5,2.33228116]
[1732903304500,0.69521,3593.0,3592.5,2.33228116]
[1732903304698,0.2781,3592.7,3592.5,2.33228116]
[1732903307103,0.2781,3592.7,3592.4,3.2078]
[1732903307302,3.2078,3592.8,3592.0,1.053]
[1732903307504,0.27815,3592.1,3592.0,1.053]
[1732903309211,0.27815,3592.0,3591.9,4.2608]
[1732903310506,0.27815,3592.0,3591.9,4.53908487]
[1732903311700,0.69527,3592.7,3591.9,4.53908487]
[1732903311701,0.27814,3592.3,3592.2,0.27813]
[1732903311911,0.27814,3592.3,3592.2,2.33228116]
[1732903312211,0.6952,3593.0,3592.2,2.33228116]
[1732903312412,0.27811,3592.6,3592.5,5.81819116]
[1732903313213,0.27811,3592.6,3592.5,6.86919116]
[1732903313512,0.23516615,3594.0,3592.5,11.59108116]
[1732903313718,0.27802,3593.9,3593.8,3.2078]
[1732903314019,0.27802,3593.9,3593.8,4.2588]
[1732903315014,0.27802,3593.9,3593.8,6.86910116]
[1732903315312,0.27802,3593.9,3593.8,6.59108116]
[1732903320914,0.27802,3593.9,3593.8,3.2078]
[1732903321110,3.2078,3594.2,3593.2,3.2078]
[1732903321314,0.27803,3593.6,3593.5,1.051]
[1732903321911,0.69499,3594.1,3593.5,1.051]
[1732903322118,0.69499,3594.1,3593.4,2.33228116]
[1732903322119,0.27801,3593.9,3593.8,3.2078]
[1732903322324,0.9729,3594.4,3593.8,5.54008116]
[1732903322508,0.278,3594.0,3593.9,0.4337]
[1732903322820,0.278,3594.0,3593.6,1.051]
[1732903322821,0.27802,3593.7,3593.6,1.051]
[1732903323118,0.27802,3593.7,3593.2,0.4337]
[1732903323119,3.90285,3593.8,3593.2,0.4337]
[1732903323322,0.69513,3593.4,3592.9,4.2588]
[1732903323517,0.27808,3593.0,3592.9,4.2588]
[1732903324823,0.27808,3593.0,3592.9,4.53689]
[1732903325519,9.78515691,3593.6,3592.9,4.2588]
[1732903325714,0.27808,3593.0,3592.9,4.2588]
[1732903325920,0.27808,3593.0,3592.9,4.53689]
[1732903326113,0.6951,3593.5,3592.9,4.53689]